[Event "*** Titled Tuesday Blitz"]
[Site "Chess.com"]
[Date "2020.01.07"]
[Round "2"]
[White "Majkelopulos"]
[Black "W_Amadeus"]
[Result "1-0"]
[WhiteElo "2525"]
[BlackElo "2694"]
[TimeControl "180+2"]
[EndTime "13:26:57 PST"]
[Termination "Majkelopulos won by resignation"]

1. e4 {[%clk 0:03:00.4]} 1... e5 {[%clk 0:03:00.6]} 2. Nc3 {[%clk 0:03:00.1]}
2... Nc6 {[%clk 0:03:01.5]} 3. g3 {[%clk 0:03:01]} 3... Nf6 {[%clk 0:03:01.5]}
4. Bg2 {[%clk 0:03:02.6]} 4... Bc5 {[%clk 0:03:01.6]} 5. Nge2 {[%clk 0:03:03.7]}
5... d6 {[%clk 0:03:01.7]} 6. O-O {[%clk 0:03:04.9]} 6... a6 {[%clk 0:03:02.5]}
7. d3 {[%clk 0:03:06]} 7... h5 {[%clk 0:03:02.1]} 8. h3 {[%clk 0:03:07.1]} 8...
h4 {[%clk 0:02:36.2]} 9. g4 {[%clk 0:03:05]} 9... Nxg4 {[%clk 0:02:37.5]} 10.
hxg4 {[%clk 0:03:06.9]} 10... Bxg4 {[%clk 0:02:39]} 11. Kh2 {[%clk 0:02:52.3]}
11... Qd7 {[%clk 0:01:27.2]} 12. f4 {[%clk 0:02:39.8]} 12... Nd4 {[%clk
0:01:23.9]} 13. f5 {[%clk 0:02:20.3]} 13... h3 {[%clk 0:01:08.3]} 14. Bh1 {[%clk
0:02:19.7]} 14... O-O-O {[%clk 0:01:09.3]} 15. Qd2 {[%clk 0:02:10.5]} 15... g6
{[%clk 0:00:57.5]} 16. Nxd4 {[%clk 0:01:59.9]} 16... Bxd4 {[%clk 0:00:38.2]} 17.
Nd5 {[%clk 0:02:00.5]} 17... gxf5 {[%clk 0:00:35.3]} 18. exf5 {[%clk 0:02:00.5]}
18... Bxf5 {[%clk 0:00:33.2]} 19. Rxf5 {[%clk 0:02:00.4]} 19... Rdg8 {[%clk
0:00:31.5]} 20. Rg5 {[%clk 0:01:50.7]} 20... c6 {[%clk 0:00:25.8]} 21. Nf6
{[%clk 0:01:48.8]} 21... Rxg5 {[%clk 0:00:10.5]} 22. Qxg5 {[%clk 0:01:46.4]}
22... Qe6 {[%clk 0:00:05.4]} 23. Qg4 {[%clk 0:01:46.2]} 23... e4 {[%clk
0:00:05.5]} 24. Qxe6+ {[%clk 0:01:46.3]} 24... fxe6 {[%clk 0:00:06.9]} 25. Ng4
{[%clk 0:01:37.8]} 25... exd3 {[%clk 0:00:06.3]} 26. cxd3 {[%clk 0:01:36.6]}
26... Rg8 {[%clk 0:00:06.5]} 27. Kxh3 {[%clk 0:01:33.7]} 27... Rh8+ {[%clk
0:00:07.2]} 28. Kg2 {[%clk 0:01:34]} 28... Rg8 {[%clk 0:00:08.6]} 29. Kg3 {[%clk
0:01:34.8]} 29... Be5+ {[%clk 0:00:04.1]} 30. Kf3 {[%clk 0:01:32.6]} 30... Rf8+
{[%clk 0:00:04.9]} 31. Ke2 {[%clk 0:01:33.7]} 31... Bd4 {[%clk 0:00:05.5]} 32.
Be3 {[%clk 0:01:32.5]} 32... Bxb2 {[%clk 0:00:06.2]} 33. Rf1 {[%clk 0:01:32.9]}
33... Rxf1 {[%clk 0:00:04.3]} 34. Kxf1 {[%clk 0:01:32.4]} 34... Kd7 {[%clk
0:00:05.1]} 35. Ke2 {[%clk 0:01:32.4]} 35... Bg7 {[%clk 0:00:04.9]} 36. Bg5
{[%clk 0:01:27.7]} 36... e5 {[%clk 0:00:05]} 37. Bf6 {[%clk 0:01:28.3]} 37...
Bf8 {[%clk 0:00:05.6]} 38. Bg5 {[%clk 0:01:26.7]} 38... Ke6 {[%clk 0:00:06.6]}
39. Ne3 {[%clk 0:01:26.1]} 39... d5 {[%clk 0:00:06.5]} 40. Bg2 {[%clk
0:01:27.1]} 40... Kd6 {[%clk 0:00:05.7]} 41. Nc2 {[%clk 0:01:25.8]} 41... Ke6
{[%clk 0:00:05]} 42. Bh3+ {[%clk 0:01:26.5]} 42... Kd6 {[%clk 0:00:06.4]} 43.
Bd2 {[%clk 0:01:27.5]} 43... Bg7 {[%clk 0:00:06.6]} 44. Ba5 {[%clk 0:01:27.7]}
44... Kc5 {[%clk 0:00:06.3]} 45. Bc8 {[%clk 0:01:27.4]} 45... b6 {[%clk
0:00:06.1]} 46. Be1 {[%clk 0:01:24.4]} 46... a5 {[%clk 0:00:05.8]} 47. Bf2+
{[%clk 0:01:24.9]} 47... Kb5 {[%clk 0:00:05.9]} 48. Bd7 {[%clk 0:01:26.5]} 48...
e4 {[%clk 0:00:04.4]} 49. d4 {[%clk 0:01:22.1]} 49... Bh8 {[%clk 0:00:04.2]} 50.
Bg3 {[%clk 0:01:22.5]} 50... Bf6 {[%clk 0:00:04.6]} 51. Be5 {[%clk 0:01:24]}
51... Bg5 {[%clk 0:00:05.7]} 52. Ne3 {[%clk 0:01:25.2]} 52... Ka4 {[%clk
0:00:05.1]} 53. Bxc6+ {[%clk 0:01:24.8]} 53... Ka3 {[%clk 0:00:06.5]} 54. Bxd5
{[%clk 0:01:26.3]} 54... b5 {[%clk 0:00:07.6]} 55. Bc7 {[%clk 0:01:24.6]} 55...
a4 {[%clk 0:00:08]} 56. Bd6+ {[%clk 0:01:25.6]} 56... Kb2 {[%clk 0:00:09]} 57.
a3 {[%clk 0:01:25.6]} 57... Bf6 {[%clk 0:00:09.5]} 58. Bc5 {[%clk 0:01:25.9]}
58... Kc3 {[%clk 0:00:10.7]} 59. Nd1+ {[%clk 0:01:20.9]} 59... Kc2 {[%clk
0:00:08.1]} 60. Bxe4+ {[%clk 0:01:22.3]} 60... Kb3 {[%clk 0:00:09.3]} 61. Bd5+
{[%clk 0:01:22.2]} 61... Kc2 {[%clk 0:00:10.6]} 62. Bc6 {[%clk 0:01:23.2]} 62...
Kb3 {[%clk 0:00:05.3]} 63. Bxb5 {[%clk 0:01:23.4]} 63... Bxd4 {[%clk 0:00:06.5]}
64. Bxd4 {[%clk 0:01:24]} 64... Kxa3 {[%clk 0:00:08.4]} 65. Bc3 {[%clk
0:01:16.7]} 65... Kb3 {[%clk 0:00:09.3]} 66. Kd3 {[%clk 0:01:17.4]} 66... a3
{[%clk 0:00:10.5]} 67. Bc4+ {[%clk 0:01:18.8]} 67... Ka4 {[%clk 0:00:11.3]} 68.
Ba2 {[%clk 0:01:19.9]} 68... Kb5 {[%clk 0:00:12.4]} 69. Ne3 {[%clk 0:01:21.4]}
1-0

[Event "*** Titled Tuesday Blitz"]
[Site "Chess.com"]
[Date "2020.01.07"]
[Round "2"]
[White "JustaTrickstar"]
[Black "1e41-0"]
[Result "1/2-1/2"]
[WhiteElo "2740"]
[BlackElo "2544"]
[TimeControl "180+2"]
[EndTime "13:27:08 PST"]
[Termination "Game drawn by repetition"]

1. c4 {[%clk 0:03:01.9]} 1... e5 {[%clk 0:03:00]} 2. Nc3 {[%clk 0:03:03.2]} 2...
Bb4 {[%clk 0:03:00.7]} 3. Nd5 {[%clk 0:03:04.1]} 3... Bc5 {[%clk 0:03:01.8]} 4.
b4 {[%clk 0:03:03.3]} 4... Bf8 {[%clk 0:03:02.2]} 5. Bb2 {[%clk 0:03:01.2]} 5...
c6 {[%clk 0:03:02.8]} 6. Ne3 {[%clk 0:03:02.5]} 6... Bxb4 {[%clk 0:02:55.2]} 7.
Bxe5 {[%clk 0:03:02.9]} 7... Nf6 {[%clk 0:02:56]} 8. Nf3 {[%clk 0:03:03.9]} 8...
O-O {[%clk 0:02:56.5]} 9. g3 {[%clk 0:03:04.9]} 9... d5 {[%clk 0:02:57.7]} 10.
Bg2 {[%clk 0:03:05.7]} 10... Nbd7 {[%clk 0:02:56.9]} 11. Bb2 {[%clk 0:03:06]}
11... Nc5 {[%clk 0:02:46.4]} 12. O-O {[%clk 0:03:06.6]} 12... dxc4 {[%clk
0:02:43.8]} 13. Nxc4 {[%clk 0:03:06.8]} 13... Be6 {[%clk 0:02:44.7]} 14. a3
{[%clk 0:02:53.6]} 14... Bxc4 {[%clk 0:02:29.9]} 15. axb4 {[%clk 0:02:53.3]}
15... Ne6 {[%clk 0:02:26.9]} 16. d3 {[%clk 0:02:50.7]} 16... Bb5 {[%clk
0:02:26.5]} 17. Qb3 {[%clk 0:02:41.9]} 17... Re8 {[%clk 0:02:23.9]} 18. Rfe1
{[%clk 0:02:42.4]} 18... Qd5 {[%clk 0:02:19.6]} 19. Qc3 {[%clk 0:02:42.9]} 19...
Qh5 {[%clk 0:02:14.2]} 20. h3 {[%clk 0:02:43.1]} 20... Nd5 {[%clk 0:02:13.6]}
21. Qc1 {[%clk 0:02:30.2]} 21... Nxb4 {[%clk 0:02:10.9]} 22. g4 {[%clk
0:02:24.8]} 22... Qc5 {[%clk 0:02:00.4]} 23. Qd2 {[%clk 0:02:25.6]} 23... a5
{[%clk 0:01:57]} 24. Bc3 {[%clk 0:02:13.9]} 24... b6 {[%clk 0:01:50.5]} 25. d4
{[%clk 0:02:06.4]} 25... Qd6 {[%clk 0:01:48.1]} 26. Ne5 {[%clk 0:02:07]} 26...
Rad8 {[%clk 0:01:43.7]} 27. e3 {[%clk 0:01:53.4]} 27... c5 {[%clk 0:01:42.7]}
28. Rad1 {[%clk 0:01:54.3]} 28... Ba4 {[%clk 0:01:36.4]} 29. Ra1 {[%clk
0:01:52.2]} 29... Bb5 {[%clk 0:01:36.8]} 30. Rad1 {[%clk 0:01:52.3]} 30... f6
{[%clk 0:01:29]} 31. Nf3 {[%clk 0:01:44.3]} 31... Nd3 {[%clk 0:01:27.8]} 32. Rf1
{[%clk 0:01:44.5]} 32... cxd4 {[%clk 0:01:21.5]} 33. Nxd4 {[%clk 0:01:45.2]}
33... Nxd4 {[%clk 0:01:20.2]} 34. Bxd4 {[%clk 0:01:47.1]} 34... Ne5 {[%clk
0:01:17.5]} 35. Rfe1 {[%clk 0:01:45.4]} 35... Nd3 {[%clk 0:01:08.8]} 36. Re2
{[%clk 0:01:39.8]} 36... Nb4 {[%clk 0:01:06.7]} 37. Ree1 {[%clk 0:01:39.3]}
37... Kh8 {[%clk 0:01:04.7]} 38. Qb2 {[%clk 0:01:25.3]} 38... Qe6 {[%clk
0:00:45.3]} 39. Bc3 {[%clk 0:01:17.1]} 39... Bc6 {[%clk 0:00:37.9]} 40. Bxb4
{[%clk 0:01:12.4]} 40... Bxg2 {[%clk 0:00:38.8]} 41. Kxg2 {[%clk 0:01:13.7]}
41... Qe4+ {[%clk 0:00:35.9]} 42. f3 {[%clk 0:01:09.4]} 42... Qxb4 {[%clk
0:00:36.3]} 43. Qxb4 {[%clk 0:01:10.2]} 43... axb4 {[%clk 0:00:37.8]} 44. Rxd8
{[%clk 0:01:08.2]} 44... Rxd8 {[%clk 0:00:39.7]} 45. Rb1 {[%clk 0:01:09.6]}
45... Rd3 {[%clk 0:00:38.3]} 46. Rxb4 {[%clk 0:01:01.3]} 46... Rxe3 {[%clk
0:00:39.4]} 47. Rxb6 {[%clk 0:01:02.9]} 47... h6 {[%clk 0:00:40.5]} 48. h4
{[%clk 0:00:59.5]} 48... h5 {[%clk 0:00:37.2]} 49. g5 {[%clk 0:00:57.5]} 49...
fxg5 {[%clk 0:00:33.8]} 50. hxg5 {[%clk 0:00:59.4]} 50... Kg8 {[%clk 0:00:32.5]}
51. Rb7 {[%clk 0:00:41.1]} 51... Kh7 {[%clk 0:00:32.6]} 52. Rb6 {[%clk
0:00:42.2]} 52... Kg8 {[%clk 0:00:33.7]} 53. Kg3 {[%clk 0:00:43.2]} 53... Kf7
{[%clk 0:00:34.2]} 54. Rc6 {[%clk 0:00:43.6]} 54... Rb3 {[%clk 0:00:33.7]} 55.
Ra6 {[%clk 0:00:33.4]} 55... Rc3 {[%clk 0:00:34.4]} 56. Kg2 {[%clk 0:00:32.1]}
56... Rb3 {[%clk 0:00:35.3]} 57. f4 {[%clk 0:00:30.6]} 57... Rc3 {[%clk
0:00:35.6]} 58. f5 {[%clk 0:00:21.8]} 58... Rc5 {[%clk 0:00:35.5]} 59. Ra7+
{[%clk 0:00:14.6]} 59... Kf8 {[%clk 0:00:35.7]} 60. Ra8+ {[%clk 0:00:16]} 60...
Kf7 {[%clk 0:00:36.5]} 61. Ra7+ {[%clk 0:00:05.8]} 61... Kf8 {[%clk 0:00:37]}
62. Ra8+ {[%clk 0:00:07.4]} 62... Ke7 {[%clk 0:00:38.1]} 63. Ra7+ {[%clk
0:00:07.3]} 63... Kf8 {[%clk 0:00:37.1]} 1/2-1/2

[Event "*** Titled Tuesday Blitz"]
[Site "Chess.com"]
[Date "2020.01.07"]
[Round "2"]
[White "RitvarsReimanis"]
[Black "Gordima"]
[Result "1-0"]
[WhiteElo "2576"]
[BlackElo "2799"]
[TimeControl "180+2"]
[EndTime "13:27:09 PST"]
[Termination "RitvarsReimanis won by resignation"]

1. d4 {[%clk 0:03:01.3]} 1... d5 {[%clk 0:03:00.6]} 2. c4 {[%clk 0:03:00.8]}
2... e6 {[%clk 0:03:02]} 3. Nf3 {[%clk 0:03:01.8]} 3... Nf6 {[%clk 0:03:02.6]}
4. Nc3 {[%clk 0:03:02.7]} 4... Bb4 {[%clk 0:03:03.3]} 5. cxd5 {[%clk 0:02:58.2]}
5... exd5 {[%clk 0:03:05.2]} 6. Qc2 {[%clk 0:02:58.8]} 6... c6 {[%clk
0:02:58.5]} 7. Bg5 {[%clk 0:02:58.7]} 7... Be6 {[%clk 0:02:56.2]} 8. e3 {[%clk
0:02:59.9]} 8... Nbd7 {[%clk 0:02:57.4]} 9. Bd3 {[%clk 0:03:01.3]} 9... Be7
{[%clk 0:02:55.7]} 10. O-O {[%clk 0:03:02.4]} 10... O-O {[%clk 0:02:54.1]} 11.
Rab1 {[%clk 0:02:57.7]} 11... a5 {[%clk 0:02:53.9]} 12. a3 {[%clk 0:02:58.3]}
12... Re8 {[%clk 0:02:43.4]} 13. b4 {[%clk 0:02:52.8]} 13... axb4 {[%clk
0:02:43.7]} 14. axb4 {[%clk 0:02:54.7]} 14... h6 {[%clk 0:02:32.2]} 15. Bh4
{[%clk 0:02:52.5]} 15... b5 {[%clk 0:02:13.9]} 16. Bg3 {[%clk 0:02:42.9]} 16...
Nb6 {[%clk 0:02:08]} 17. Ne5 {[%clk 0:02:39.5]} 17... Qc8 {[%clk 0:02:07.6]} 18.
e4 {[%clk 0:02:29.7]} 18... Qb7 {[%clk 0:01:50.7]} 19. exd5 {[%clk 0:02:02.6]}
19... Nbxd5 {[%clk 0:01:52.6]} 20. Nxd5 {[%clk 0:01:58.6]} 20... Bxd5 {[%clk
0:01:44.3]} 21. f3 {[%clk 0:01:39.8]} 21... Ra2 {[%clk 0:01:43.7]} 22. Qd1
{[%clk 0:01:40.4]} 22... Qa7 {[%clk 0:01:39]} 23. Rf2 {[%clk 0:01:30.2]} 23...
Ra3 {[%clk 0:01:30.3]} 24. Bf1 {[%clk 0:01:25]} 24... Ra8 {[%clk 0:01:06.9]} 25.
Re2 {[%clk 0:01:14.5]} 25... Bf8 {[%clk 0:01:02.8]} 26. Bf2 {[%clk 0:01:14.1]}
26... Qb6 {[%clk 0:00:53]} 27. Reb2 {[%clk 0:01:09.7]} 27... Ra2 {[%clk
0:00:50.1]} 28. Nd3 {[%clk 0:01:02.3]} 28... Rxb2 {[%clk 0:00:40.2]} 29. Rxb2
{[%clk 0:01:04.2]} 29... Ra3 {[%clk 0:00:41.1]} 30. Nc5 {[%clk 0:01:01.2]} 30...
Qa7 {[%clk 0:00:42.4]} 31. Rb1 {[%clk 0:01:01.5]} 31... Ra2 {[%clk 0:00:43.1]}
32. Be3 {[%clk 0:00:58.4]} 32... Bd6 {[%clk 0:00:42.7]} 33. Bd3 {[%clk
0:00:53.1]} 33... Qb8 {[%clk 0:00:42.4]} 34. h3 {[%clk 0:00:42]} 34... Bf4
{[%clk 0:00:43.2]} 35. Bf2 {[%clk 0:00:39.2]} 35... Bg3 {[%clk 0:00:38.2]} 36.
Be3 {[%clk 0:00:40.2]} 36... Bf4 {[%clk 0:00:36.8]} 37. Bf2 {[%clk 0:00:41.6]}
37... Qa7 {[%clk 0:00:36.7]} 38. Ne4 {[%clk 0:00:35.5]} 38... Nd7 {[%clk
0:00:23.1]} 39. Bf1 {[%clk 0:00:30.2]} 39... Nb6 {[%clk 0:00:16.1]} 40. Nc3
{[%clk 0:00:31.5]} 40... Ra3 {[%clk 0:00:16.2]} 41. Qc2 {[%clk 0:00:25.5]} 41...
Qd7 {[%clk 0:00:15.3]} 42. Re1 {[%clk 0:00:23.4]} 42... g6 {[%clk 0:00:15.4]}
43. Ne4 {[%clk 0:00:21.9]} 43... Ra2 {[%clk 0:00:12.5]} 44. Nf6+ {[%clk
0:00:19.4]} 44... Kg7 {[%clk 0:00:08.1]} 45. Nxd7 {[%clk 0:00:15.7]} 45... Rxc2
{[%clk 0:00:09.2]} 46. Nxb6 {[%clk 0:00:17.1]} 46... Be6 {[%clk 0:00:10.6]} 47.
d5 {[%clk 0:00:14.9]} 47... cxd5 {[%clk 0:00:10.9]} 48. Bxb5 {[%clk 0:00:16.2]}
48... Bd2 {[%clk 0:00:11.5]} 49. Rd1 {[%clk 0:00:15.6]} 49... Rb2 {[%clk
0:00:10.4]} 50. Bd4+ {[%clk 0:00:15.1]} 1-0

[Event "*** Titled Tuesday Blitz"]
[Site "Chess.com"]
[Date "2020.01.07"]
[Round "2"]
[White "j2806"]
[Black "Caisachess"]
[Result "0-1"]
[WhiteElo "1843"]
[BlackElo "2369"]
[TimeControl "180+2"]
[EndTime "13:27:13 PST"]
[Termination "Caisachess won by resignation"]

1. e4 {[%clk 0:03:01.3]} 1... e5 {[%clk 0:02:59.6]} 2. Nf3 {[%clk 0:03:01.5]}
2... Nc6 {[%clk 0:03:01.1]} 3. Bb5 {[%clk 0:03:02.2]} 3... f5 {[%clk 0:03:00.4]}
4. d3 {[%clk 0:02:57.9]} 4... fxe4 {[%clk 0:03:01.1]} 5. dxe4 {[%clk 0:02:58.8]}
5... Nf6 {[%clk 0:03:02.7]} 6. Nbd2 {[%clk 0:02:51.7]} 6... Bc5 {[%clk
0:03:00.7]} 7. O-O {[%clk 0:02:51]} 7... O-O {[%clk 0:02:58.5]} 8. Qe2 {[%clk
0:02:30.7]} 8... Kh8 {[%clk 0:02:53.1]} 9. Nb3 {[%clk 0:02:30.7]} 9... Bb6
{[%clk 0:02:52.3]} 10. Be3 {[%clk 0:02:21.1]} 10... d6 {[%clk 0:02:50.5]} 11. h3
{[%clk 0:02:01.7]} 11... Qe8 {[%clk 0:02:44.9]} 12. Kh2 {[%clk 0:01:55.9]} 12...
Qg6 {[%clk 0:02:44]} 13. Bxb6 {[%clk 0:01:54.9]} 13... axb6 {[%clk 0:02:43.4]}
14. Bd3 {[%clk 0:01:40.3]} 14... Nh5 {[%clk 0:02:39.6]} 15. g3 {[%clk
0:01:30.2]} 15... Be6 {[%clk 0:02:19.4]} 16. a3 {[%clk 0:01:20]} 16... h6 {[%clk
0:02:02.8]} 17. Rae1 {[%clk 0:01:09.6]} 17... Qf7 {[%clk 0:02:03.3]} 18. Nbd2
{[%clk 0:00:57.8]} 18... Qd7 {[%clk 0:01:58.5]} 19. Ng1 {[%clk 0:00:52.6]} 19...
Nf6 {[%clk 0:01:53.9]} 20. c3 {[%clk 0:00:46.2]} 20... g5 {[%clk 0:01:37.8]} 21.
Bc4 {[%clk 0:00:43.1]} 21... Rf7 {[%clk 0:01:28.8]} 22. Bxe6 {[%clk 0:00:43]}
22... Qxe6 {[%clk 0:01:28.9]} 23. Ngf3 {[%clk 0:00:36.4]} 23... Raf8 {[%clk
0:01:27.2]} 24. Kg2 {[%clk 0:00:36]} 24... Ne7 {[%clk 0:01:22.8]} 25. Ng1 {[%clk
0:00:32.5]} 25... Ng6 {[%clk 0:01:23.5]} 26. Qc4 {[%clk 0:00:33.3]} 26... Qd7
{[%clk 0:01:23.3]} 27. Ngf3 {[%clk 0:00:28.7]} 27... Nh5 {[%clk 0:01:23.6]} 28.
Rh1 {[%clk 0:00:22.4]} 28... b5 {[%clk 0:01:05.6]} 29. Qb3 {[%clk 0:00:20.8]}
29... Kg7 {[%clk 0:01:00.9]} 30. Qd1 {[%clk 0:00:21.2]} 30... Qe6 {[%clk
0:00:58.1]} 31. Ref1 {[%clk 0:00:21.3]} 31... Nf6 {[%clk 0:00:56.2]} 32. Qe2
{[%clk 0:00:20.6]} 32... c6 {[%clk 0:00:56.3]} 33. Qd1 {[%clk 0:00:20.4]} 33...
d5 {[%clk 0:00:56.5]} 34. exd5 {[%clk 0:00:21]} 34... cxd5 {[%clk 0:00:56]} 35.
Qe1 {[%clk 0:00:20.9]} 35... Nh5 {[%clk 0:00:42.7]} 36. Qd1 {[%clk 0:00:20.7]}
36... e4 {[%clk 0:00:38.3]} 37. Nd4 {[%clk 0:00:20.9]} 37... Nhf4+ {[%clk
0:00:35.7]} 38. gxf4 {[%clk 0:00:20.5]} 38... Nxf4+ {[%clk 0:00:35.9]} 39. Kg3
{[%clk 0:00:20.5]} 39... Qe5 {[%clk 0:00:35.9]} 40. Qg4 {[%clk 0:00:21.1]} 40...
Nd3+ {[%clk 0:00:33.1]} 41. Kg2 {[%clk 0:00:21.8]} 41... Rxf2+ {[%clk 0:00:34]}
42. Rxf2 {[%clk 0:00:22.5]} 42... Rxf2+ {[%clk 0:00:35.2]} 43. Kg1 {[%clk
0:00:24.1]} 43... Rxd2 {[%clk 0:00:33.7]} 44. Qd7+ {[%clk 0:00:24.9]} 44... Kg6
{[%clk 0:00:34.8]} 45. Qg4 {[%clk 0:00:19]} 45... Qf4 {[%clk 0:00:30.9]} 46.
Qxf4 {[%clk 0:00:19.2]} 46... gxf4 {[%clk 0:00:31.4]} 47. Kf1 {[%clk 0:00:17]}
47... Rd1+ {[%clk 0:00:30.4]} 48. Kg2 {[%clk 0:00:17.2]} 48... f3+ {[%clk
0:00:29.1]} 49. Kh2 {[%clk 0:00:16.6]} 49... Rd2+ {[%clk 0:00:29.3]} 50. Kg1
{[%clk 0:00:16.5]} 50... Rxb2 {[%clk 0:00:26.1]} 51. Rh2 {[%clk 0:00:15.6]}
51... Rxh2 {[%clk 0:00:26]} 52. Kxh2 {[%clk 0:00:16.4]} 52... Ne5 {[%clk
0:00:25.7]} 53. Kg3 {[%clk 0:00:17.2]} 53... Kf6 {[%clk 0:00:23.8]} 54. Nxb5
{[%clk 0:00:17.8]} 54... e3 {[%clk 0:00:24.3]} 55. Nd4 {[%clk 0:00:17.5]} 55...
e2 {[%clk 0:00:25.2]} 56. Kf2 {[%clk 0:00:18.4]} 56... Nd3+ {[%clk 0:00:25.9]}
57. Kxf3 {[%clk 0:00:17.9]} 57... e1=Q {[%clk 0:00:26.7]} 0-1

[Event "*** Titled Tuesday Blitz"]
[Site "Chess.com"]
[Date "2020.01.07"]
[Round "2"]
[White "TwentyHoursADay"]
[Black "HouseOfDurin"]
[Result "1-0"]
[WhiteElo "2417"]
[BlackElo "2101"]
[TimeControl "180+2"]
[EndTime "13:27:15 PST"]
[Termination "TwentyHoursADay won by checkmate"]

1. c4 {[%clk 0:03:00.8]} 1... c5 {[%clk 0:03:00.2]} 2. g3 {[%clk 0:03:01.1]}
2... Nc6 {[%clk 0:03:01.6]} 3. Bg2 {[%clk 0:03:01.4]} 3... g6 {[%clk 0:03:03.2]}
4. Nc3 {[%clk 0:03:02.6]} 4... Bg7 {[%clk 0:03:04.7]} 5. Nf3 {[%clk 0:03:04.1]}
5... e5 {[%clk 0:03:06.2]} 6. a3 {[%clk 0:03:02.6]} 6... Nge7 {[%clk 0:03:07.1]}
7. b4 {[%clk 0:03:03.7]} 7... cxb4 {[%clk 0:03:07.9]} 8. axb4 {[%clk 0:03:05.1]}
8... Nxb4 {[%clk 0:03:09]} 9. Ba3 {[%clk 0:03:06.2]} 9... Nbc6 {[%clk
0:03:09.5]} 10. Ne4 {[%clk 0:03:02.6]} 10... O-O {[%clk 0:03:09.5]} 11. Nd6
{[%clk 0:02:42.4]} 11... e4 {[%clk 0:03:02.6]} 12. Nxe4 {[%clk 0:02:35.5]} 12...
Bxa1 {[%clk 0:03:02.2]} 13. Qxa1 {[%clk 0:02:37.4]} 13... f5 {[%clk 0:02:35.7]}
14. Nd6 {[%clk 0:02:03.8]} 14... Qa5 {[%clk 0:02:21.9]} 15. Qb2 {[%clk
0:01:49.1]} 15... Qb6 {[%clk 0:01:53.5]} 16. Qc3 {[%clk 0:01:35.3]} 16... Qb1+
{[%clk 0:01:49.6]} 17. Bc1 {[%clk 0:01:35.6]} 17... Qb4 {[%clk 0:01:01.7]} 18.
Qd3 {[%clk 0:01:35.3]} 18... Qc5 {[%clk 0:00:31.2]} 19. Bb2 {[%clk 0:01:20.6]}
19... Rf7 {[%clk 0:00:10.3]} 20. Nxf7 {[%clk 0:01:02.2]} 20... Kxf7 {[%clk
0:00:12.2]} 21. Qc3 {[%clk 0:00:56.7]} 21... d5 {[%clk 0:00:10.7]} 22. Qg7+
{[%clk 0:00:48.6]} 22... Ke8 {[%clk 0:00:12]} 23. cxd5 {[%clk 0:00:30.4]} 23...
Qxd5 {[%clk 0:00:09.9]} 24. O-O {[%clk 0:00:29.3]} 24... Qf7 {[%clk 0:00:10.3]}
25. Qh8+ {[%clk 0:00:24.1]} 25... Qg8 {[%clk 0:00:11.1]} 26. Qf6 {[%clk
0:00:19.9]} 26... Qf7 {[%clk 0:00:11.4]} 27. Qd6 {[%clk 0:00:21]} 27... Be6
{[%clk 0:00:11.8]} 28. Ng5 {[%clk 0:00:21.4]} 28... Rd8 {[%clk 0:00:12.1]} 29.
Qxe6 {[%clk 0:00:20.4]} 29... Qxe6 {[%clk 0:00:13.5]} 30. Nxe6 {[%clk
0:00:21.6]} 30... Rxd2 {[%clk 0:00:15.4]} 31. Bc3 {[%clk 0:00:18]} 31... Rxe2
{[%clk 0:00:16.4]} 32. Nf4 {[%clk 0:00:16.7]} 32... Rc2 {[%clk 0:00:16.8]} 33.
Ba1 {[%clk 0:00:14.9]} 33... a5 {[%clk 0:00:17.3]} 34. Rb1 {[%clk 0:00:14.8]}
34... Nb4 {[%clk 0:00:16.9]} 35. Bxb7 {[%clk 0:00:15.3]} 35... Ra2 {[%clk
0:00:15.6]} 36. Bc3 {[%clk 0:00:14.1]} 36... Kd7 {[%clk 0:00:13.7]} 37. Bxb4
{[%clk 0:00:13.8]} 37... axb4 {[%clk 0:00:15.6]} 38. Rxb4 {[%clk 0:00:15.3]}
38... Ra1+ {[%clk 0:00:16.7]} 39. Kg2 {[%clk 0:00:16.5]} 39... Ra7 {[%clk
0:00:17.8]} 40. Bf3 {[%clk 0:00:17.1]} 40... Rc7 {[%clk 0:00:15.2]} 41. Rd4+
{[%clk 0:00:18]} 41... Ke8 {[%clk 0:00:16.1]} 42. Ne6 {[%clk 0:00:19.3]} 42...
Rc2 {[%clk 0:00:16.7]} 43. h4 {[%clk 0:00:17]} 43... Rb2 {[%clk 0:00:15.4]} 44.
Rd8+ {[%clk 0:00:16.2]} 44... Kf7 {[%clk 0:00:16.2]} 45. Ng5+ {[%clk 0:00:17.8]}
45... Kg7 {[%clk 0:00:16.6]} 46. Rd7 {[%clk 0:00:17.9]} 46... Kf8 {[%clk
0:00:17]} 47. Nxh7+ {[%clk 0:00:18.5]} 47... Ke8 {[%clk 0:00:18.6]} 48. Ra7
{[%clk 0:00:16.8]} 48... Rd2 {[%clk 0:00:14.2]} 49. Ng5 {[%clk 0:00:12]} 49...
Rd4 {[%clk 0:00:14.5]} 50. Be2 {[%clk 0:00:11.5]} 50... f4 {[%clk 0:00:14.5]}
51. Bb5+ {[%clk 0:00:11.7]} 51... Kf8 {[%clk 0:00:15.5]} 52. Ne6+ {[%clk
0:00:13]} 52... Kf7 {[%clk 0:00:16.7]} 53. Nxd4 {[%clk 0:00:14.4]} 53... fxg3
{[%clk 0:00:18.4]} 54. fxg3 {[%clk 0:00:15.4]} 54... Kf6 {[%clk 0:00:20.1]} 55.
Rxe7 {[%clk 0:00:14.9]} 55... Kxe7 {[%clk 0:00:21.1]} 56. g4 {[%clk 0:00:16]}
56... Kf6 {[%clk 0:00:23]} 57. Kf3 {[%clk 0:00:16.9]} 57... Kg7 {[%clk
0:00:23.7]} 58. Kf4 {[%clk 0:00:17.3]} 58... Kh6 {[%clk 0:00:25]} 59. Ke5 {[%clk
0:00:17.3]} 59... Kg7 {[%clk 0:00:26.9]} 60. g5 {[%clk 0:00:17.8]} 60... Kh7
{[%clk 0:00:28]} 61. Kf6 {[%clk 0:00:17.7]} 61... Kg8 {[%clk 0:00:29.5]} 62.
Kxg6 {[%clk 0:00:18.6]} 62... Kh8 {[%clk 0:00:31.4]} 63. h5 {[%clk 0:00:19.9]}
63... Kg8 {[%clk 0:00:33.3]} 64. h6 {[%clk 0:00:21.3]} 64... Kh8 {[%clk
0:00:35.2]} 65. Kf6 {[%clk 0:00:22.3]} 65... Kg8 {[%clk 0:00:37.1]} 66. g6
{[%clk 0:00:23.4]} 66... Kh8 {[%clk 0:00:39]} 67. Nf5 {[%clk 0:00:23]} 67... Kg8
{[%clk 0:00:40.9]} 68. Ne7+ {[%clk 0:00:19.6]} 68... Kh8 {[%clk 0:00:42.8]} 69.
g7+ {[%clk 0:00:19.9]} 69... Kh7 {[%clk 0:00:44.2]} 70. g8=Q+ {[%clk 0:00:21.3]}
70... Kxh6 {[%clk 0:00:46.1]} 71. Qg6# {[%clk 0:00:22.3]} 1-0